bitfinex-derivatives/quotes_ETHF0:USTF0_20250531
["timestamp","ask_amount","ask_price","bid_price","bid_amount"]
[1748656812310,5.0,2491.2,2490.4,6.311]
[1748656812513,0.8952,2491.4,2490.5,0.08030515]
[1748656812711,3.2078,2490.6,2490.5,0.88301515]
[1748656813016,3.2078,2490.6,2490.5,0.08030515]
[1748656813917,3.2078,2490.6,2490.5,0.88303515]
[1748656814116,3.2078,2490.6,2490.5,0.08030515]
[1748656814916,4.21119,2490.6,2490.5,0.08030515]
[1748656815215,3.4085,2490.6,2490.5,0.08030515]
[1748656815618,3.4085,2490.6,2490.5,0.88303515]
[1748656815815,0.00601685,2491.6,2490.5,12.19503515]
[1748656815816,0.80840685,2491.6,2490.5,12.19503515]
[1748656816012,3.21381685,2491.6,2490.7,3.2078]
[1748656816413,3.21381685,2491.6,2491.1,3.2078]
[1748656816621,3.21381685,2491.6,2491.2,0.80249]
[1748656816918,3.21381685,2491.6,2491.1,6.314]
[1748656817113,3.2078,2491.3,2491.1,6.9161]
[1748656817324,3.21381685,2491.6,2491.4,0.80242]
[1748656817618,3.21381685,2491.6,2491.1,6.9161]
[1748656817619,3.21381685,2491.6,2491.5,0.8024]
[1748656817919,0.00601685,2491.6,2491.5,0.8024]
[1748656818116,0.00601685,2491.6,2491.1,6.9161]
[1748656818117,0.80840685,2491.6,2491.1,4.6124]
[1748656818321,3.21381685,2491.6,2491.2,6.314]
[1748656818523,3.21381685,2491.6,2491.4,0.80244]
[1748656818723,0.00601685,2491.6,2491.5,0.8024]
[1748656819224,0.00601685,2491.6,2491.5,5.8024]
[1748656819425,0.00601685,2491.6,2491.5,8.0926]
[1748656820120,0.00601685,2491.6,2491.5,2.2902]
[1748656820722,0.00601685,2491.6,2491.1,0.6021]
[1748656820924,0.80840685,2491.6,2491.2,7.11648]
[1748656821120,0.00601685,2491.6,2491.2,6.314]
[1748656821625,0.00601685,2491.6,2491.4,0.80241]
[1748656821830,0.80841685,2491.6,2491.2,6.314]
[1748656822019,0.00601685,2491.6,2491.3,0.80245]
[1748656822415,0.00601685,2491.6,2491.2,6.314]
[1748656822615,0.00601685,2491.6,2491.5,0.8024]
[1748656823618,0.00601685,2491.6,2491.3,3.2078]
[1748656824019,0.80244,2491.4,2491.3,3.2078]
[1748656824215,0.8025,2491.2,2491.1,0.6021]
[1748656824412,0.80261,2490.9,2490.4,44.46054]
[1748656824723,0.7452,2491.3,2490.3,0.00601685]
[1748656824724,3.2078,2490.7,2490.3,0.00601685]
[1748656825026,3.2078,2490.4,2490.3,0.00601685]
[1748656825228,4.01056,2490.4,2490.3,0.00601685]
[1748656825720,9.01056,2490.4,2490.3,0.00601685]
[1748656828222,0.80289,2490.0,2489.9,0.6024]
[1748656828427,3.2078,2490.0,2489.9,0.6024]
[1748656828619,3.2078,2490.3,2490.0,0.80286]
[1748656828816,3.2078,2490.6,2490.1,6.316]
[1748656829222,3.2078,2490.6,2490.5,0.80273]
[1748656829223,0.00601685,2490.6,2490.5,0.80273]
[1748656829527,3.2078,2491.3,2491.2,0.8025]
[1748656829728,3.2078,2491.3,2490.9,6.316]
[1748656830025,3.2078,2491.3,2491.0,2.3707]
[1748656830226,3.2078,2491.3,2491.2,0.8025]
[1748656830620,4.01028,2491.3,2491.0,2.3707]
[1748656830816,3.2078,2491.3,2491.0,2.3707]
[1748656831625,3.2078,2491.3,2491.0,3.17325]
[1748656832125,0.80253,2491.1,2491.0,2.3707]
[1748656832821,3.2078,2491.3,2490.5,6.256]
[1748656833021,3.2078,2490.8,2490.6,2.2184]
[1748656833629,4.01045,2490.8,2490.6,2.2184]
[1748656833920,3.2078,2491.1,2490.6,2.2184]
[1748656834120,3.2078,2491.1,2491.0,0.80257]
[1748656834329,3.41441685,2491.5,2491.4,0.80244]
[1748656834627,3.41441685,2491.5,2491.3,0.80247]
[1748656834822,3.41441685,2491.5,2491.4,0.80244]
[1748656835019,3.41441685,2491.5,2491.3,0.80245]
[1748656835221,0.20661685,2491.5,2491.4,3.21024]
[1748656835625,3.2078,2492.2,2492.1,0.80221]
[1748656835830,3.2078,2492.2,2491.8,6.257]
[1748656836019,3.2078,2492.2,2491.9,2.4078]
[1748656836722,0.00601685,2492.3,2491.9,5.6156]
[1748656837320,0.00601685,2492.3,2492.0,0.80223]
[1748656837627,0.00601685,2492.3,2492.1,2.4078]
[1748656838031,0.00601685,2492.3,2492.2,0.80218]
[1748656838219,3.2078,2492.9,2492.2,3.2078]
[1748656838417,3.2078,2493.2,2492.6,3.2078]
[1748656838721,3.2078,2493.2,2493.1,0.80189]
[1748656838925,3.2078,2493.6,2493.1,6.256]
[1748656839220,2.30061413,2493.8,2493.3,3.2078]
[1748656839623,4.30480413,2493.8,2493.1,2.41511685]
[1748656839826,0.80186,2493.2,2493.1,2.41511685]
[1748656840022,4.00966,2493.2,2493.1,0.00601685]
[1748656840427,8.2078,2493.2,2492.2,6.256]
[1748656840727,3.2078,2492.8,2492.1,3.2078]
[1748656840922,4.0099,2492.5,2492.1,6.254]
[1748656841123,0.80212,2492.4,2492.1,6.254]
[1748656841431,3.2078,2492.5,2492.1,6.254]
[1748656841728,3.2078,2492.5,2492.2,2.3947]
[1748656842126,3.2078,2492.5,2492.2,2.9965]
[1748656842422,0.80215,2492.3,2492.2,2.9965]
[1748656842622,3.2078,2492.9,2492.3,2.3947]
[1748656842823,4.00976,2492.9,2492.4,0.8021]
[1748656843022,4.00976,2492.9,2492.5,2.3947]
[1748656843227,0.7508,2493.3,2492.5,2.3947]
[1748656843228,4.00985,2492.6,2492.5,2.3947]
[1748656843426,3.2078,2492.6,2492.5,2.3947]
[1748656843926,3.2078,2493.0,2492.5,2.3947]
[1748656844128,0.80197,2492.9,2492.5,2.3947]
[1748656844323,3.2078,2493.0,2492.5,2.3947]
[1748656844524,4.00974,2493.0,2492.5,2.3947]
[1748656844827,4.00985,2492.6,2492.5,2.3947]
[1748656845321,3.2078,2492.6,2492.5,2.3947]
[1748656845523,0.80204,2492.7,2492.5,2.3947]
[1748656845730,3.2078,2492.9,2492.5,2.3947]
[1748656845930,0.80205,2492.6,2492.5,2.3947]
[1748656846125,4.00985,2492.6,2492.5,2.3947]
[1748656846326,4.00985,2492.6,2492.2,0.6018]
[1748656846327,0.80215,2492.3,2492.2,0.6018]
[1748656846528,3.2078,2492.3,2492.2,0.6018]
[1748656846729,3.2078,2492.6,2492.2,5.6018]
[1748656846923,3.2078,2493.0,2492.4,3.2078]
[1748656847433,3.2078,2493.0,2492.7,0.802]
[1748656847622,3.2078,2493.0,2492.8,6.253]
[1748656847827,0.80184,2493.3,2492.9,2.4367]
[1748656848027,3.21381685,2493.4,2492.9,3.23864]
[1748656848230,4.01563685,2493.4,2492.9,3.23864]
[1748656848428,3.21381685,2493.4,2492.9,2.4367]
[1748656848629,0.80192,2493.0,2492.9,8.6897]
[1748656848833,4.01562685,2493.4,2492.9,9.49164]
[1748656849034,3.21381685,2493.4,2492.9,8.6897]
[1748656849228,0.00601685,2493.4,2493.3,0.80182]
[1748656849829,0.00601685,2493.4,2493.3,5.80182]
[1748656850027,0.00601685,2493.4,2493.3,8.23852]
[1748656850332,3.2078,2494.0,2493.4,0.80177]
[1748656850530,0.80164,2493.9,2493.5,7.05474]
[1748656851132,3.2078,2494.0,2493.5,6.25901685]
[1748656851331,3.2078,2494.3,2493.7,3.2078]
[1748656851522,3.27935339,2494.6,2494.0,3.2078]
[1748656851726,3.27935339,2494.6,2494.1,8.5015]
[1748656852524,3.2078,2494.9,2494.3,3.2078]
[1748656852936,3.2078,2495.2,2494.7,3.2078]
[1748656853135,3.2078,2495.2,2495.0,0.80128]
[1748656853338,3.2078,2495.2,2495.1,2.389]
[1748656853537,3.2078,2495.5,2495.1,2.389]
[1748656853835,0.80121,2495.2,2495.1,2.389]
[1748656854236,0.80119,2495.3,2495.1,2.389]
[1748656854431,3.2078,2495.5,2495.1,2.389]
[1748656854644,3.2078,2495.2,2494.8,3.12973]
[1748656854937,0.80117,2495.4,2495.0,3.2078]
[1748656855139,0.80117,2495.4,2495.1,2.3507]
[1748656855341,3.9813,2495.8,2495.1,3.15194]
[1748656855640,3.9813,2495.8,2495.1,5.5585]
[1748656855838,3.9813,2495.8,2495.2,6.25]
[1748656856030,3.2078,2496.8,2496.0,0.80094]
[1748656856237,3.2078,2496.1,2495.7,6.25]
[1748656856542,3.2078,2496.1,2495.8,2.3507]
[1748656857132,0.80096,2496.0,2495.8,2.3507]
[1748656857539,4.00874,2496.1,2495.8,2.3507]
[1748656857735,3.2078,2496.1,2495.8,2.3507]
[1748656858840,0.80099,2495.9,2495.8,2.3507]
[1748656859239,3.2078,2496.1,2495.8,2.3507]
[1748656859440,0.80098,2496.0,2495.8,2.3507]
[1748656859641,0.80099,2495.9,2495.8,2.3507]
[1748656859839,3.2078,2496.1,2495.7,0.00601685]
[1748656860244,4.00882,2495.8,2495.7,0.00601685]
[1748656860434,2.00272,2495.6,2494.5,3.2078]
[1748656860634,0.80142,2494.6,2494.3,6.193]
[1748656860839,0.80139,2494.7,2494.4,2.244]
[1748656861046,0.80144,2494.5,2494.4,2.244]
[1748656861242,4.00924,2494.5,2494.4,2.244]
[1748656861444,3.2078,2494.5,2494.3,6.193]
[1748656861838,0.8015,2494.3,2494.2,0.00601685]
[1748656862142,0.8015,2494.3,2494.2,6.85e-06]
[1748656862341,0.80166,2493.8,2493.7,2.244]
[1748656862543,3.2078,2494.2,2494.1,0.80157]
[1748656862751,3.21381685,2494.7,2494.1,3.2078]
[1748656863041,3.21381685,2494.7,2494.6,0.80141]
[1748656863235,3.21381685,2494.7,2494.6,6.193]
[1748656863944,0.80141,2494.6,2494.5,2.3135]
[1748656864251,0.80144,2494.5,2494.4,0.00601685]
[1748656864649,5.80144,2494.5,2494.4,0.00601685]
[1748656865144,5.80144,2494.5,2493.4,6.193]
[1748656865145,5.0,2494.5,2493.4,6.193]
[1748656865347,3.2078,2493.7,2493.4,8.5065]
[1748656865551,0.80176,2493.5,2493.4,8.5065]
[1748656866046,3.2078,2493.7,2493.4,8.5065]
[1748656866243,3.2078,2494.1,2493.4,8.5065]
[1748656866444,4.00937,2494.1,2493.6,0.80171]
[1748656866647,0.80161,2494.0,2493.7,2.2566]
[1748656866849,4.00946,2493.8,2493.7,2.2566]
[1748656867048,4.00946,2493.8,2493.3,40.41901685]
[1748656867241,4.00956,2493.5,2493.4,2.2566]
[1748656867438,3.2078,2493.8,2493.4,2.2566]
[1748656867642,4.00956,2493.5,2493.4,2.2566]
[1748656868244,3.2078,2493.5,2493.4,2.2566]
[1748656868451,4.00956,2493.5,2493.4,2.2566]
[1748656869043,3.2078,2493.5,2493.3,0.00601685]
[1748656869349,3.2078,2493.5,2493.3,2.41191685]
[1748656869551,4.24632,2494.4,2493.3,2.41191685]
[1748656869552,3.2078,2493.8,2493.3,10.61971685]
[1748656869853,3.2078,2493.8,2493.3,5.61971685]
[1748656870055,3.2078,2493.8,2493.7,0.8017]
[1748656870240,0.07757024,2494.7,2493.8,2.00417]
[1748656870555,0.07757024,2494.7,2494.6,0.80141]
[1748656870850,0.87897024,2494.7,2494.4,6.194]
[1748656871052,0.07757024,2494.7,2494.5,2.4059]
[1748656871252,0.80141,2494.6,2494.5,2.4059]
[1748656872447,3.28537024,2494.7,2494.5,2.4059]
[1748656872643,0.07757024,2494.7,2494.6,6.99541]
[1748656872846,4.00894,2495.5,2494.6,6.194]
[1748656873054,3.02961413,2495.9,2495.0,3.2078]
[1748656873252,2.30061413,2495.9,2495.4,0.80113]
[1748656873446,3.10161413,2495.9,2495.1,8.5079]
[1748656873749,2.30061413,2495.9,2495.7,3.2078]
[1748656873955,0.80102,2495.8,2495.7,9.4008]
[1748656874158,0.80102,2495.8,2495.7,6.193]
[1748656874452,0.00601685,2496.0,2495.7,6.193]
[1748656874657,0.80099,2495.9,2495.7,6.193]
[1748656874950,0.00601685,2496.0,2495.7,6.193]
[1748656875548,0.00601685,2496.0,2495.9,4.00879]
[1748656876053,3.2078,2497.0,2495.9,8.2078]
[1748656876249,0.80077,2496.6,2496.2,3.2078]
[1748656876450,0.80077,2496.6,2496.3,6.193]
[1748656876656,0.8008,2496.5,2496.3,6.193]
[1748656876849,0.8066,2496.9,2496.3,6.193]
[1748656877155,0.80075,2496.7,2496.3,6.193]
[1748656877558,0.00601685,2496.8,2496.6,3.2078]
[1748656877760,0.00601685,2496.8,2496.6,4.00856]
[1748656877957,0.00601685,2496.8,2496.6,3.2078]
[1748656878354,0.00601685,2496.8,2496.6,4.00856]
[1748656878552,0.00601685,2496.8,2496.7,0.80073]
[1748656878748,3.2078,2497.6,2497.2,0.80056]
[1748656878958,4.2415,2498.0,2496.6,10.20971]
[1748656878959,7.90241413,2498.0,2497.4,3.2078]
[1748656879262,0.80042,2497.7,2497.4,3.2078]
[1748656879464,0.80046,2497.6,2497.4,3.2078]
[1748656879650,0.80046,2497.6,2497.3,6.192]
[1748656879651,3.2078,2497.6,2496.8,6.19]
[1748656879853,0.80066,2497.0,2496.8,6.19]
[1748656880060,3.2078,2497.8,2496.8,6.19]
[1748656880256,3.2078,2497.8,2497.0,3.2078]
[1748656880453,0.8111,2497.8,2497.0,3.2078]
[1748656880955,3.2078,2497.8,2497.0,3.2078]
[1748656881258,0.80067,2496.9,2496.8,6.19]
[1748656881861,0.80067,2496.9,2496.8,8.4898]
[1748656882060,0.80065,2497.0,2496.8,8.4898]
[1748656882362,0.80067,2496.9,2496.8,8.4898]
[1748656882555,0.8008,2496.5,2496.4,2.2031]
[1748656882953,0.80086,2496.3,2496.2,3.2078]
[1748656883358,3.2078,2496.6,2496.2,3.2078]
[1748656883653,0.07155339,2496.8,2496.5,3.2078]
[1748656883861,3.08525044,2497.8,2496.6,40.391]
[1748656884060,3.2078,2500.0,2497.7,3.2078]
[1748656884264,3.2078,2499.1,2498.5,3.2078]
[1748656884464,0.8,2499.0,2498.9,3.2078]
[1748656884667,0.79998,2499.1,2498.8,6.189]
[1748656884865,7.80250055,2499.5,2499.0,4.00778]
[1748656885162,3.2878192,2499.4,2499.0,3.2078]
[1748656885664,0.8222,2499.7,2499.0,3.2078]
[1748656885665,0.0800224,2499.3,2499.0,3.2078]
[1748656886661,0.8799224,2499.3,2499.0,3.2078]
[1748656886851,0.0800224,2499.3,2499.0,3.2078]
[1748656887256,0.8799424,2499.3,2499.1,2.3789]
[1748656887455,0.79993,2499.2,2499.1,2.3789]
[1748656887653,0.80006,2498.8,2498.7,0.00600468]
[1748656887857,4.00786,2498.8,2498.7,0.00600468]
[1748656888059,0.80006,2498.8,2498.7,0.00600468]
[1748656888267,0.80003,2498.9,2498.7,0.00600468]
[1748656888465,0.80001,2499.0,2498.7,0.00600468]
[1748656888659,0.80003,2498.9,2498.7,0.00600468]
[1748656888860,0.80006,2498.8,2498.7,0.00600468]
[1748656889153,3.19666,2498.8,2498.7,0.00600468]
[1748656890167,8.19666,2498.8,2498.7,0.00600468]
[1748656891078,9.3968,2498.8,2497.7,6.14]
[1748656891255,0.80038,2497.8,2497.7,9.3478]
[1748656891459,3.2078,2498.3,2497.7,6.14]
[1748656891868,0.80038,2497.8,2497.7,6.14]
[1748656892272,3.21376413,2498.0,2497.5,0.00600468]
[1748656892565,0.80044,2497.6,2497.5,4.68e-06]
[1748656893064,5.80044,2497.6,2497.5,4.68e-06]
[1748656893267,2.00123,2497.5,2496.2,6.139]
[1748656893461,3.2078,2496.6,2496.2,6.139]
[1748656893855,0.80086,2496.3,2496.2,6.139]
[1748656894259,4.00866,2496.3,2496.2,6.139]
[1748656894460,0.80093,2496.1,2496.0,0.00600468]
[1748656894663,1.00123,2496.1,2496.0,0.08613288]
[1748656895569,0.2003,2496.1,2496.0,0.08613288]
[1748656895869,1.00123,2496.1,2496.0,0.08613288]
[1748656896069,0.2003,2496.1,2496.0,0.08613288]
[1748656897168,0.2003,2496.1,2496.0,3.29393288]
[1748656897368,0.2003,2496.1,2496.0,0.08613288]
[1748656897572,0.2003,2496.1,2496.0,15.23589288]
[1748656897772,0.2003,2496.1,2496.0,14.43493288]
[1748656897976,3.21380468,2496.5,2496.0,15.23587288]
[1748656898179,4.01460468,2496.5,2496.0,9.43493288]
[1748656898376,0.1537,2496.4,2496.0,9.43493288]
[1748656898772,0.95454,2496.4,2496.0,9.43493288]
[1748656899071,0.80086,2496.3,2496.0,6.22713288]
[1748656899479,0.8009,2496.2,2496.0,6.22713288]
[1748656899675,0.8009,2496.2,2496.0,6.14700468]
[1748656899871,0.1537,2496.4,2496.0,6.14700468]
[1748656900179,0.1537,2496.4,2496.0,9.35480468]
[1748656900376,0.1537,2496.4,2496.3,4.00866]
[1748656900675,4.00841,2497.1,2496.3,8.2078]
[1748656900974,3.2078,2497.1,2496.6,3.2078]
[1748656901175,2.2766,2497.3,2496.7,6.142]
[1748656901366,3.27935339,2497.6,2496.7,6.142]
[1748656901572,2.2766,2497.5,2496.7,6.142]
[1748656901878,0.00596413,2497.3,2496.7,6.94271]
[1748656902178,0.80652413,2497.3,2496.9,3.2078]
[1748656902376,0.80064,2497.0,2496.7,6.142]
[1748656902578,0.80066,2497.0,2496.7,6.142]
[1748656902877,0.80073,2496.7,2496.6,3.2078]
[1748656903077,0.80081,2496.5,2496.3,6.142]
[1748656903275,0.00596413,2497.3,2496.4,3.2078]
[1748656903276,3.21376413,2497.3,2496.4,3.2078]
[1748656903579,0.80071,2496.8,2496.4,3.2078]
[1748656903778,0.80083,2496.4,2496.3,6.142]
[1748656904076,3.2078,2496.4,2496.0,0.00600468]
[1748656904271,0.80093,2496.1,2496.0,0.00600468]
[1748656904677,5.80093,2496.1,2496.0,0.00600468]
[1748656904872,5.80093,2496.1,2496.0,4.68e-06]
[1748656906184,11.94293,2496.1,2496.0,4.68e-06]
[1748656906474,16.05383,2496.1,2496.0,4.68e-06]
[1748656907074,17.11160665,2496.1,2496.0,4.68e-06]
[1748656907784,16.05383,2496.1,2496.0,4.68e-06]
[1748656907979,9.91183,2496.1,2496.0,4.68e-06]
[1748656908281,0.80093,2496.1,2496.0,4.68e-06]
[1748656908479,3.2078,2496.3,2496.0,4.68e-06]
[1748656908680,0.80081,2496.5,2496.0,4.68e-06]
[1748656908877,0.80084,2496.4,2496.0,5.59880468]
[1748656909179,0.80088,2496.3,2496.0,5.59880468]
[1748656909682,0.80093,2496.1,2496.0,4.68e-06]
[1748656909984,3.2078,2496.2,2496.0,4.68e-06]
[1748656910286,4.00873,2496.1,2496.0,4.68e-06]
[1748656910773,3.2078,2496.4,2496.0,4.68e-06]
[1748656911082,0.80093,2496.1,2496.0,4.68e-06]
[1748656911277,0.07155339,2496.1,2496.0,4.68e-06]
[1748656911482,0.07155339,2496.1,2496.0,9.00876468]
[1748656911976,3.2078,2496.7,2496.0,8.20780468]
[1748656912177,0.80075,2496.7,2496.2,0.80088]
[1748656912382,3.2078,2497.0,2496.5,3.2078]
[1748656912688,3.2078,2497.0,2496.6,2.3705]
[1748656912987,3.2078,2496.7,2496.0,2.36200468]
[1748656913182,0.80089,2496.2,2496.1,2.3705]
[1748656914186,0.87248339,2496.1,2496.0,4.68e-06]
[1748656914678,5.07155339,2496.1,2494.8,3.2078]
[1748656914883,3.2078,2495.6,2494.9,2.2648]
[1748656915084,0.80125,2495.1,2494.9,2.2648]
[1748656915289,0.80123,2495.2,2494.9,2.2648]
[1748656915484,0.80128,2495.0,2494.9,2.2648]
[1748656916379,0.80126,2495.1,2494.9,2.2648]
[1748656916577,0.00600468,2495.3,2494.9,2.2648]
[1748656916778,3.2078,2496.6,2495.0,49.7388]
[1748656916980,5.20998,2496.3,2495.5,3.2078]
[1748656917181,3.2078,2496.0,2495.6,8.4078]
[1748656917381,0.80102,2495.8,2495.7,2.2081]
[1748656917791,0.00596413,2496.0,2495.7,2.2081]
[1748656918476,4.00882,2495.8,2495.7,2.2081]
[1748656919885,4.00882,2495.8,2495.2,2.2757]
[1748656919886,8.2078,2495.8,2495.2,2.2757]
[1748656920083,0.80118,2495.3,2495.2,2.2757]
[1748656920387,3.2078,2495.8,2495.0,40.388]
[1748656920595,3.2078,2495.8,2495.1,3.2078]
[1748656920891,0.80125,2495.1,2495.0,6.114]
[1748656921190,0.80125,2495.1,2494.8,0.00600468]
[1748656921191,0.80131,2494.9,2494.8,0.00600468]
[1748656921384,4.00911,2494.9,2494.8,0.00600468]
[1748656922090,9.00911,2494.9,2494.8,0.00600468]
[1748656922287,4.00911,2494.9,2494.8,0.00600468]
[1748656922689,5.07437978,2494.9,2494.8,0.00600468]
[1748656923595,4.00911,2494.9,2494.8,0.00600468]
[1748656924495,9.00911,2494.9,2494.8,0.00600468]
[1748656924794,0.8016,2494.0,2493.9,2.2345]
[1748656924998,0.8016,2494.0,2493.9,2.2664]
[1748656925194,3.2078,2494.0,2493.9,2.2664]
[1748656925497,1.0633409,2494.9,2494.5,0.80142]
[1748656925799,1.87067558,2494.9,2494.6,2.2664]
[1748656925999,0.80141,2494.6,2494.5,0.00600468]
[1748656926199,4.00921,2494.6,2494.5,0.00600468]
[1748656926491,0.07755807,2494.9,2494.5,0.00600468]
[1748656926896,4.00921,2494.6,2494.5,0.00600468]
[1748656927107,0.80159,2494.1,2493.5,2.2004]
[1748656927295,0.80162,2494.0,2493.6,2.3216]
[1748656927693,3.2078,2494.3,2493.6,2.3216]
[1748656927894,3.2078,2494.6,2493.6,2.3216]
[1748656928095,3.2078,2494.3,2493.9,0.00600468]
[1748656928298,0.8016,2494.0,2493.9,0.00600468]
[1748656928491,4.0094,2494.0,2493.9,0.00600468]
[1748656928696,3.2078,2494.0,2493.9,0.00600468]
[1748656928903,0.8016,2494.0,2493.9,0.00600468]
[1748656929203,4.0094,2494.0,2493.9,0.00600468]
[1748656929407,0.8016,2494.0,2493.9,0.00600468]
[1748656929597,0.80158,2494.1,2493.9,0.00600468]
[1748656929902,0.8016,2494.0,2493.9,0.00600468]
[1748656930310,5.8016,2494.0,2493.9,0.00600468]
[1748656930703,3.2078,2494.2,2493.9,0.00600468]
[1748656930903,3.2078,2494.5,2493.9,0.00600468]
[1748656931204,3.2078,2494.5,2493.9,5.42140468]
[1748656931502,3.2078,2494.8,2494.5,0.80143]
[1748656931804,3.2078,2494.8,2494.6,2.2076]
[1748656932107,0.00600468,2494.9,2494.6,2.2076]
[1748656932407,0.00600468,2494.9,2494.6,3.00899]
[1748656932699,3.2078,2495.9,2494.8,3.2078]
[1748656933009,3.2078,2495.9,2495.2,3.2078]
[1748656933703,3.2078,2495.9,2495.3,4.77770468]
[1748656934003,0.80115,2495.4,2495.3,4.77770468]
[1748656934205,0.80115,2495.4,2495.3,0.00600468]
[1748656934600,0.80112,2495.5,2495.3,0.00600468]
[1748656934800,0.80115,2495.4,2495.3,0.00600468]
[1748656935809,3.2078,2495.6,2495.3,0.00600468]
[1748656935810,0.80113,2495.5,2495.3,0.00600468]
[1748656936000,0.00600468,2495.8,2495.3,3.21380468]
[1748656936309,0.00600468,2495.8,2495.4,2.3881]
[1748656936505,0.80106,2495.7,2495.4,2.3881]
[1748656937003,0.00600468,2495.8,2495.4,2.3881]
[1748656937304,0.8011,2495.6,2495.4,2.3881]
[1748656937509,0.80112,2495.5,2495.4,2.3881]
[1748656938704,0.80702468,2495.8,2495.4,2.3881]
[1748656939210,0.00600468,2495.8,2495.4,2.3881]
[1748656939403,0.80112,2495.5,2495.4,2.3881]
[1748656939707,0.07155339,2495.5,2495.4,2.3881]
[1748656939902,0.80703468,2495.8,2495.4,2.3881]
[1748656940207,0.80106,2495.7,2495.4,2.3881]
[1748656940509,0.07155339,2495.5,2495.4,2.3881]
[1748656941198,0.00600468,2495.8,2495.4,7.3881]
[1748656941404,0.80088,2496.3,2495.6,3.2078]
[1748656941702,0.80088,2496.3,2495.5,8.5823]
[1748656941703,5.52035132,2496.9,2496.2,3.2078]
[1748656941907,3.2078,2496.9,2496.3,8.4768]
[1748656942109,2.31255132,2497.3,2496.8,3.2078]
[1748656942312,0.80064,2497.0,2496.9,2.3608]
[1748656942708,0.00596413,2497.2,2496.9,2.3608]
[1748656942907,0.00596413,2497.2,2497.0,3.2078]
[1748656943107,0.00596413,2497.2,2497.1,3.1614]
[1748656943410,3.2078,2497.8,2497.1,2.3608]
[1748656943608,0.80049,2497.5,2497.4,3.2078]
[1748656944007,0.80057,2497.2,2497.1,2.3608]
[1748656944811,4.00837,2497.2,2497.1,2.3608]
[1748656945111,0.8007,2496.8,2496.7,0.00600468]
[1748656945315,0.80063,2497.1,2496.7,0.00600468]
[1748656945513,3.2078,2497.6,2496.7,0.00600468]
[1748656945714,3.2078,2498.0,2497.1,3.2078]
[1748656945916,3.2078,2498.0,2497.4,3.2078]
[1748656946103,5.4705,2498.0,2497.5,2.2332]
[1748656946306,0.80054,2497.3,2497.2,6.114]
[1748656946507,5.4705,2498.0,2497.2,6.114]
[1748656946713,2.00088,2497.9,2497.2,6.114]
[1748656947009,5.4705,2498.0,2497.3,3.2078]
[1748656947010,0.80051,2497.4,2497.3,3.2078]
[1748656947307,3.2078,2498.0,2497.3,5.441]
[1748656947709,2.2627,2498.3,2497.3,5.441]
[1748656947910,2.2627,2498.3,2497.4,2.2389]
[1748656948111,0.80045,2497.6,2497.4,2.2389]
[1748656948311,0.80044,2497.6,2497.5,2.3084]
[1748656948506,0.8004,2497.8,2497.5,2.3084]
[1748656948715,2.2627,2498.3,2497.5,2.3084]
[1748656948716,0.80044,2497.6,2497.5,2.3084]
[1748656949408,3.2078,2498.1,2497.5,2.3084]
[1748656949615,0.80044,2497.6,2497.5,2.3084]
[1748656950211,0.80044,2497.7,2497.5,2.3084]
[1748656950416,0.80044,2497.6,2497.5,2.3084]
[1748656950611,2.2627,2498.3,2497.5,5.5162]
[1748656950813,3.2078,2498.9,2498.1,3.2078]
[1748656951017,3.2078,2498.9,2498.3,0.00600468]
[1748656951223,3.2078,2498.9,2498.5,3.2078]
[1748656951514,3.2078,2499.3,2498.6,2.3775]
[1748656951719,0.80009,2498.7,2498.6,2.3775]
[1748656951911,0.80006,2498.9,2498.6,2.3775]
[1748656952108,2.3029,2499.2,2498.6,2.3775]
[1748656952311,2.3029,2499.2,2498.9,3.2078]
[1748656952511,0.79996,2499.1,2499.0,2.3775]
[1748656952715,0.80012,2498.6,2498.5,3.2078]
[1748656952916,0.80016,2498.5,2498.4,2.3775]
[1748656953117,0.80019,2498.4,2498.3,0.00600468]
[1748656953515,9.00799,2498.4,2498.3,0.00600468]
[1748656953715,9.00799,2498.4,2498.3,4.68e-06]
[1748656955920,4.00159,2498.1,2496.5,6.088]
[1748656956115,3.2078,2498.4,2497.3,2.3088]
[1748656956317,3.2078,2498.4,2498.0,3.2078]
[1748656956318,2.3006,2498.4,2498.0,3.2078]
[1748656956619,0.80026,2498.2,2497.7,3.2078]
[1748656956818,3.2078,2498.4,2497.8,2.3088]
[1748656957017,3.2078,2498.4,2498.0,4.00811]
[1748656957225,0.80026,2498.2,2498.1,2.4299]
[1748656957521,3.2078,2498.4,2498.1,2.4299]
[1748656957921,4.00801,2498.4,2498.1,2.4299]
[1748656958121,3.2078,2498.4,2498.1,2.4299]
[1748656958322,0.80026,2498.2,2498.1,2.4299]
[1748656958824,0.80023,2498.3,2498.1,2.4299]
[1748656959019,0.80019,2498.4,2498.1,2.4299]
[1748656959219,0.80023,2498.3,2498.1,2.4299]
[1748656959424,0.07155339,2498.5,2498.1,2.4299]
[1748656959627,3.27935339,2498.5,2498.1,2.4299]
[1748656960126,0.80032,2498.0,2497.9,0.00600468]
[1748656960924,4.00812,2498.0,2497.9,0.00600468]
[1748656961124,0.80032,2498.0,2497.9,0.00600468]
[1748656961522,8.2078,2498.0,2497.3,3.2078]
[1748656961723,0.80051,2497.4,2497.3,3.2078]
[1748656962327,0.80058,2497.2,2497.1,2.2731]
[1748656962631,0.80074,2496.7,2496.6,6.086]
[1748656962830,0.80074,2496.7,2496.6,8.3591]
[1748656963536,0.00600468,2496.9,2496.6,8.3591]
[1748656963832,0.00600468,2496.9,2496.8,4.00851]
[1748656964030,3.2078,2497.8,2496.8,3.2078]
[1748656964230,0.80039,2497.8,2497.2,3.2078]
[1748656964532,0.80047,2497.6,2497.3,8.4737]
[1748656964738,3.2078,2497.7,2497.3,8.4737]